bitfinex/quotes_ETHUSD_20241104
["timestamp","ask_amount","ask_price","bid_price","bid_amount"]
[1730743009374,4.15586,2428.1,2427.8,0.1288943]
[1730743009580,0.0374,2428.1,2427.5,4.89003]
[1730743009886,4.15587,2428.1,2427.7,4.11911]
[1730743010175,4.15587,2428.1,2427.8,0.12889316]
[1730743010375,4.15587,2428.1,2427.7,4.11911]
[1730743010580,4.15587,2428.1,2427.8,0.12889389]
[1730743010875,4.15587,2428.1,2427.7,4.11911]
[1730743011080,4.15587,2428.1,2427.8,0.12889607]
[1730743011375,4.15587,2428.1,2427.7,5.07149819]
[1730743011541,4.15587,2428.1,2427.8,0.1288934]
[1730743011742,4.15587,2428.1,2427.7,5.07149819]
[1730743012053,4.15587,2428.1,2427.8,0.12889409]
[1730743012255,4.15587,2428.1,2427.7,5.07149819]
[1730743012453,4.15587,2428.1,2427.8,0.12889348]
[1730743012655,4.15587,2428.1,2427.7,5.07149819]
[1730743012867,4.15587,2428.1,2427.8,0.12889358]
[1730743013049,4.15587,2428.1,2427.7,5.07149819]
[1730743013252,4.15587,2428.1,2427.8,0.12889619]
[1730743013478,8.27442,2428.1,2427.7,5.07149819]
[1730743013779,4.15587,2428.1,2427.8,0.12889679]
[1730743014012,4.15587,2428.1,2427.7,0.95238819]
[1730743014219,4.11869,2428.0,2427.5,9.00951]
[1730743014505,4.11869,2428.0,2427.6,1.23607784]
[1730743014711,4.11869,2428.0,2427.7,0.12889487]
[1730743014870,4.11869,2428.0,2427.8,0.12889487]
[1730743015078,4.11869,2428.0,2427.6,5.020081]
[1730743015275,4.11869,2428.0,2427.7,1.32613745]
[1730743015519,4.11869,2428.0,2427.8,0.12889375]
[1730743015730,4.11869,2428.0,2427.7,0.20622846]
[1730743015885,4.11869,2428.0,2427.8,0.12889289]
[1730743016084,4.11869,2428.0,2427.6,4.11913]
[1730743016289,4.15584,2428.1,2427.7,4.24797643]
[1730743016622,4.15584,2428.1,2427.8,0.12889643]
[1730743016787,4.15584,2428.1,2427.7,5.03286064]
[1730743016991,4.15584,2428.1,2427.8,0.12889564]
[1730743017318,4.15584,2428.1,2427.9,0.12889576]
[1730743017529,4.15584,2428.1,2427.7,5.03286064]
[1730743017724,4.15584,2428.1,2427.8,0.12889579]
[1730743017924,4.15584,2428.1,2427.7,5.03286064]
[1730743018323,4.11869,2428.0,2427.8,0.12889579]
[1730743018628,4.11869,2428.0,2427.6,4.11913]
[1730743018629,4.11869,2428.0,2427.9,0.12889579]
[1730743019130,0.0374,2428.1,2427.9,0.12889579]
[1730743019292,4.11868,2428.0,2427.8,0.20622745]
[1730743019489,4.11868,2428.0,2427.9,0.12889637]
[1730743021124,4.15587,2428.1,2427.9,0.12889637]
[1730743021374,4.15587,2428.1,2428.0,0.12889576]
[1730743023201,0.0374,2427.5,2427.2,0.21046309]
[1730743023404,4.11965,2427.4,2427.3,0.5929908]
[1730743023743,5.69839552,2427.4,2427.3,0.33516871]
[1730743024031,5.69839552,2427.4,2427.3,0.12891104]
[1730743024329,4.12031,2427.0,2426.9,0.20630829]
[1730743024518,4.12031,2427.0,2426.9,0.12894433]
[1730743024519,5.66165552,2427.0,2426.9,0.12894433]
[1730743025129,4.1205,2426.9,2426.7,0.2063163]
[1730743025320,5.66176552,2427.0,2426.8,0.12894727]
[1730743025520,5.66176552,2427.0,2426.7,0.20631564]
[1730743025860,5.66176552,2427.0,2426.8,0.12894782]
[1730743026060,5.66176552,2427.0,2426.7,0.20631619]
[1730743026225,5.66176552,2427.0,2426.6,4.90837]
[1730743026226,5.66174552,2427.0,2426.8,0.12894764]
[1730743026428,9.78214552,2427.0,2426.6,0.99371619]
[1730743026760,5.69914552,2427.0,2426.7,0.12894801]
[1730743027054,5.69914552,2427.0,2426.6,1.71101362]
[1730743027055,4.12059,2426.9,2426.6,1.71101362]
[1730743027545,4.1578,2427.0,2426.6,1.71101362]
[1730743028047,0.0374,2427.0,2426.7,0.12895533]
[1730743028221,0.0374,2427.0,2426.7,4.12081]
[1730743028423,0.0374,2427.0,2426.7,0.99529136]
[1730743028917,4.15777,2427.0,2426.7,0.99529136]
[1730743031457,4.15777,2427.0,2426.6,4.90835]
[1730743031757,4.15777,2427.0,2426.6,0.7874]
[1730743031964,4.12106,2426.6,2426.2,0.7772]
[1730743032166,4.10017,2426.5,2426.1,4.12182]
[1730743032362,4.10017,2426.5,2426.1,5.23795449]
[1730743032664,4.1215,2426.3,2426.0,1.63153897]
[1730743032959,0.0374,2426.8,2426.0,1.84295329]
[1730743033121,4.15765,2427.1,2426.6,4.12091]
[1730743033520,0.0374,2427.3,2426.8,4.12057]
[1730743033746,3.59171227,2427.8,2427.1,4.1201]
[1730743033747,4.11946,2427.5,2427.1,4.1201]
[1730743034629,4.1197,2427.4,2427.0,4.12029]
[1730743035152,4.11953,2427.5,2427.1,4.12005]
[1730743035730,8.2391,2427.5,2427.0,4.944358]
[1730743036471,4.11953,2427.5,2427.0,9.064598]
[1730743036629,4.11953,2427.5,2427.0,4.944308]
[1730743036965,4.11987,2427.3,2426.8,4.1205]
[1730743037269,4.11987,2427.3,2426.7,0.8081]
[1730743037270,4.12005,2427.2,2426.7,4.92883]
[1730743037557,4.12005,2427.2,2426.6,4.12089]
[1730743037558,0.0374,2427.2,2426.6,4.12089]
[1730743037766,4.12033,2427.0,2426.6,4.12089]
[1730743037920,4.12033,2427.0,2426.7,0.412089]
[1730743038565,3.61911227,2427.2,2426.4,0.8171]
[1730743038773,4.12033,2427.0,2426.4,4.93836]
[1730743039068,4.12065,2426.8,2426.4,0.8171]
[1730743040048,4.12065,2426.8,2426.4,4.93842]
[1730743040265,4.12082,2426.7,2426.4,0.8171]
[1730743040564,4.12065,2426.8,2426.4,0.8171]
[1730743041324,4.12065,2426.8,2426.4,4.9384]
[1730743041764,4.12049,2426.9,2426.4,4.93834]
[1730743041964,4.12045,2427.0,2426.5,4.12105]
[1730743042165,8.24086,2427.0,2426.5,4.12105]
[1730743042532,4.12055,2426.9,2426.5,4.12105]
[1730743042731,4.12041,2427.0,2426.5,4.12105]
[1730743043062,4.1205,2426.9,2426.5,4.12105]
[1730743044326,4.12038,2427.0,2426.5,4.12105]
[1730743044564,4.12055,2426.9,2426.5,4.12105]
[1730743044865,4.12055,2426.9,2426.5,5.0763724]
[1730743045228,4.12038,2427.0,2426.6,4.12098]
[1730743045426,4.12048,2426.9,2426.5,5.0763724]
[1730743045627,4.12048,2426.9,2426.5,5.0763524]
[1730743046728,4.12038,2427.0,2426.4,1.310934]
[1730743046927,4.12065,2426.8,2426.4,5.06735038]
[1730743047231,4.12065,2426.8,2426.4,4.93839]
[1730743047557,4.12083,2426.7,2426.4,0.8171]
[1730743047760,4.15805,2426.8,2426.4,0.94606108]
[1730743047958,4.15805,2426.8,2426.4,5.06737108]
[1730743048128,4.15805,2426.8,2426.3,4.12149]
[1730743048333,4.15805,2426.8,2426.4,0.12896075]
[1730743048334,4.1209,2426.7,2426.4,0.12896075]
[1730743048533,4.1209,2426.7,2426.3,4.12149]
[1730743048750,4.1209,2426.7,2426.4,0.128961]
[1730743048980,4.1209,2426.7,2426.3,4.12149]
[1730743049156,4.1209,2426.7,2426.4,0.12896098]
[1730743049479,4.1209,2426.7,2426.3,4.12149]
[1730743049774,4.1209,2426.7,2426.4,0.12896101]
[1730743049946,4.1209,2426.7,2426.5,0.12896101]
[1730743050155,4.1209,2426.7,2426.3,4.12142]
[1730743050470,4.1209,2426.7,2426.4,0.12896069]
[1730743050471,4.12101,2426.6,2426.4,0.12896069]
[1730743050635,4.1209,2426.7,2426.2,5.09771721]
[1730743050836,4.1209,2426.7,2426.3,0.12896212]
[1730743051070,4.1209,2426.7,2426.4,0.12896212]
[1730743051270,4.1209,2426.7,2426.3,0.20633721]
[1730743051473,4.1209,2426.7,2426.4,0.12896202]
[1730743051680,4.1209,2426.7,2426.3,4.12148]
[1730743051838,4.1209,2426.7,2426.4,0.12896838]
[1730743052037,4.1209,2426.7,2426.3,4.12148]
[1730743052242,4.1209,2426.7,2426.4,0.12896828]
[1730743052472,4.1209,2426.7,2426.5,0.12896828]
[1730743052787,4.1209,2426.7,2426.3,4.12148]
[1730743052939,4.1209,2426.7,2426.4,0.12896807]
[1730743053137,4.1209,2426.7,2426.5,0.12896807]
[1730743053476,4.1209,2426.7,2426.6,0.12896807]
[1730743054445,4.12101,2426.6,2426.4,0.20635451]
[1730743054648,4.12101,2426.6,2426.5,0.12896989]
[1730743055173,4.12085,2426.7,2426.5,0.12896989]
[1730743055373,4.12085,2426.7,2426.2,5.14930595]
[1730743055374,4.12085,2426.7,2426.6,0.12896989]
[1730743055676,5.6643147,2426.6,2426.3,0.20635372]
[1730743055837,5.6643147,2426.6,2426.2,9.01292]
[1730743055838,5.6643147,2426.6,2426.4,0.33532505]
[1730743056036,1.5432947,2426.6,2426.5,0.12897099]
[1730743058975,9.82184017,2426.6,2426.5,0.12897099]
[1730743059177,9.82184017,2426.6,2425.8,4.89309]
[1730743059178,4.12167,2426.2,2425.8,4.89309]
[1730743059476,5.6651447,2426.1,2425.9,0.12899661]
[1730743059632,5.6651447,2426.1,2426.0,0.12900221]
[1730743060036,1.5432947,2426.1,2426.0,0.12900221]
[1730743060552,1.5432947,2426.1,2426.0,0.12899934]
[1730743060730,5.7022047,2426.3,2426.0,0.12899934]
[1730743060936,0.0374,2426.5,2425.9,4.12213]
[1730743061133,5.7015147,2426.7,2426.3,4.12137]
[1730743061492,3.0,2427.0,2426.1,0.7788]
[1730743061493,0.0374,2426.9,2426.5,4.12105]
[1730743061634,0.0374,2427.1,2426.7,4.12081]
[1730743061980,4.15763,2427.1,2426.7,4.12081]
[1730743062476,4.11957,2427.5,2427.0,4.12024]
[1730743062844,4.11957,2427.5,2427.1,4.12011]
[1730743063242,4.11957,2427.5,2427.0,4.1203]
[1730743063243,8.23914,2427.5,2427.0,4.1203]
[1730743063442,4.11957,2427.5,2427.1,0.12893071]
[1730743063649,8.23912,2427.5,2427.0,4.1203]
[1730743063893,4.11964,2427.4,2427.0,4.1203]
[1730743064175,4.11964,2427.4,2427.1,0.1289311]
[1730743064374,8.2391,2427.5,2427.0,4.12021]
[1730743064877,4.11955,2427.5,2427.0,8.24045]
[1730743065351,8.23911,2427.5,2427.0,4.12021]
[1730743065553,8.23911,2427.5,2427.0,5.026291]
[1730743067463,4.11955,2427.5,2427.0,5.026291]
[1730743067668,4.11964,2427.4,2427.0,5.026291]
[1730743069379,4.11964,2427.4,2427.0,0.906081]
[1730743070373,4.15729,2427.3,2427.0,0.906081]
[1730743070575,8.27721,2427.3,2426.9,0.12893575]
[1730743070799,4.15729,2427.3,2426.8,4.12051]
[1730743070969,4.15729,2427.3,2426.8,8.24107]
[1730743071473,4.15729,2427.3,2426.9,4.12048]
[1730743071674,4.15729,2427.3,2427.0,0.824099]
[1730743071874,4.11989,2427.3,2427.0,0.824099]
[1730743072098,4.15699,2427.5,2427.1,4.12006]
[1730743072304,8.27659,2427.5,2427.0,5.705789]
[1730743072878,4.15699,2427.5,2427.0,9.826029]
[1730743073104,4.15699,2427.5,2427.1,0.9826029]
[1730743073303,8.27655,2427.5,2427.0,4.88164]
[1730743073616,4.15696,2427.5,2427.0,4.88164]
[1730743073784,4.1197,2427.4,2427.0,4.88164]
[1730743074405,4.11988,2427.3,2427.0,0.7614]
[1730743074995,4.1197,2427.4,2427.0,4.88169]
[1730743075317,4.1197,2427.4,2427.0,5.781904]
[1730743078021,8.23946,2427.4,2427.0,5.781904]
[1730743078202,4.1197,2427.4,2427.0,5.781904]
[1730743078516,4.1197,2427.4,2427.0,1.661614]
[1730743078517,4.1198,2427.3,2427.0,1.661614]
[1730743078715,4.1197,2427.4,2427.0,5.781904]
[1730743078716,8.23943,2427.4,2427.0,5.781904]
[1730743078882,4.1197,2427.4,2427.0,5.781904]
[1730743079077,0.0374,2427.5,2427.1,5.1103444]
[1730743079283,4.11943,2427.6,2427.1,5.1103444]
[1730743079694,4.11957,2427.5,2427.1,5.1103444]
[1730743080295,4.11964,2427.4,2427.1,0.9902344]
[1730743080729,0.0374,2427.7,2427.1,0.9902344]
[1730743081022,0.0374,2427.7,2427.1,4.12008]
[1730743081023,4.11946,2427.5,2427.1,4.12008]
[1730743081810,4.11946,2427.5,2427.0,0.7614]
[1730743082137,4.11946,2427.5,2427.1,4.12013]
[1730743082634,4.11941,2427.6,2427.2,4.11993]
[1730743082811,4.11941,2427.6,2427.3,0.8186]
[1730743083639,8.23879,2427.6,2427.3,0.8186]
[1730743084200,4.11949,2427.5,2427.3,0.8186]
[1730743084407,4.11949,2427.5,2427.1,4.90743]
[1730743085033,4.11969,2427.4,2427.1,0.7873]
[1730743086604,4.11981,2427.3,2427.1,0.7873]
[1730743086841,7.70201458,2427.3,2426.9,4.93634]
[1730743087742,3.58220458,2427.3,2426.9,4.93634]
[1730743087931,3.58220458,2427.3,2427.0,4.12031]
[1730743088115,7.70203458,2427.3,2426.9,4.93634]
[1730743088751,7.70203458,2427.3,2426.7,4.12078]
[1730743088752,4.12021,2427.1,2426.7,4.12078]
[1730743090080,4.12011,2427.2,2426.8,4.12055]
[1730743091262,4.12011,2427.2,2426.9,0.12894489]
[1730743091583,4.12011,2427.2,2426.8,4.12055]
[1730743091749,4.12011,2427.2,2426.9,0.12894533]
[1730743092087,4.12011,2427.2,2426.8,4.12055]
[1730743092378,4.12011,2427.2,2426.9,0.12894309]
[1730743092585,7.70208458,2427.3,2426.9,4.24939309]
[1730743093453,4.12002,2427.2,2426.8,4.12064]
[1730743093971,4.12002,2427.2,2426.9,0.12894315]
[1730743094892,8.24014,2427.2,2426.9,0.12894315]
[1730743095184,7.73999458,2427.0,2426.6,0.7825]
[1730743095390,4.12051,2426.9,2426.5,4.12114]
[1730743095548,4.12051,2426.9,2426.4,4.91281]
[1730743095977,4.12079,2426.8,2426.4,0.7916]
[1730743096146,4.12082,2426.7,2426.4,0.7916]
[1730743096365,7.67912458,2426.7,2426.4,0.7916]
[1730743096578,4.12107,2426.6,2426.3,0.21115431]
[1730743096774,3.61960458,2426.7,2426.3,0.21115431]
[1730743096986,7.74044458,2426.7,2426.3,4.33257431]
[1730743097301,7.70744458,2426.7,2426.3,0.21115431]
[1730743097596,4.121,2426.6,2426.3,0.21115431]
[1730743098293,4.12128,2426.5,2426.3,0.21115431]
[1730743098491,4.05508,2426.5,2426.1,4.12181]
[1730743099500,4.08373,2426.6,2426.2,4.12163]
[1730743099704,4.12118,2426.5,2426.1,4.12181]
[1730743100200,4.12118,2426.5,2426.1,8.2435]
[1730743100501,4.12118,2426.5,2426.1,9.14556]
[1730743100678,4.08373,2426.6,2426.1,9.14556]
[1730743101380,8.20488,2426.6,2426.1,9.14556]
[1730743101702,8.20488,2426.6,2426.1,5.02381]
[1730743101907,4.12118,2426.5,2426.1,5.02381]
[1730743103081,4.12118,2426.5,2426.1,9.14557]
[1730743103301,4.12118,2426.5,2426.1,5.02381]
[1730743103493,4.12118,2426.5,2426.2,0.580091]
[1730743105093,4.121,2426.6,2426.2,4.701621]
[1730743105820,8.24214,2426.6,2426.2,4.701621]
[1730743106537,4.121,2426.6,2426.2,4.701621]
[1730743106923,4.121,2426.6,2426.2,0.580091]
[1730743107124,4.12117,2426.5,2426.2,0.580091]
[1730743109855,4.12102,2426.6,2426.3,0.4701911]
[1730743110022,4.12117,2426.5,2426.3,0.4701911]
[1730743110227,4.12117,2426.5,2426.1,4.12182]
[1730743110544,4.12117,2426.5,2425.1,4.342]
[1730743110545,4.12181,2426.2,2425.7,4.12243]
[1730743110748,4.12181,2426.2,2425.8,0.12898909]
[1730743110931,4.12181,2426.2,2425.8,4.12233]
[1730743111265,4.12181,2426.2,2425.8,5.028906]
[1730743112031,4.12186,2426.1,2425.8,0.906576]
[1730743112462,4.1215,2426.3,2425.8,5.028896]
[1730743112646,4.12167,2426.2,2425.8,5.028896]
[1730743112847,8.24312,2426.3,2425.9,4.12217]
[1730743113048,4.1215,2426.3,2425.9,4.12217]
[1730743113248,8.24312,2426.3,2425.9,5.1193856]
[1730743114876,4.12174,2426.2,2425.9,0.9972156]
[1730743118037,3.58220458,2426.4,2425.4,0.8264]
[1730743118038,3.61960458,2426.1,2425.4,0.8264]
[1730743118243,4.15891,2426.3,2425.7,4.12252]
[1730743118478,4.15891,2426.3,2425.8,4.12225]
[1730743118479,4.12171,2426.2,2425.8,4.12225]
[1730743118680,8.28057,2426.3,2425.9,0.7754]
[1730743118988,0.0374,2426.3,2425.9,0.7754]
[1730743119182,8.28062,2426.3,2425.9,0.7754]
[1730743120002,4.12156,2426.3,2425.9,4.89751]
[1730743120151,4.12156,2426.3,2426.0,0.9926877]
[1730743121098,3.58220458,2426.4,2426.0,5.1146177]
[1730743121099,4.12142,2426.4,2426.0,5.1146177]
[1730743121593,4.1213,2426.5,2426.1,4.89521]
[1730743121790,4.12101,2426.6,2426.2,5.12258277]
[1730743121956,4.12101,2426.6,2426.2,1.00098277]
[1730743122492,4.12101,2426.6,2426.1,4.89515]
[1730743122779,4.12101,2426.6,2426.2,0.12897888]
[1730743122944,7.12072,2426.8,2426.3,4.12137]
[1730743123144,4.12072,2426.8,2426.4,0.7867]
[1730743123449,4.12082,2426.7,2426.4,0.7867]
[1730743123773,4.12072,2426.8,2426.4,4.90801]
[1730743124163,4.12085,2426.7,2426.4,0.7867]
[1730743124796,0.0374,2426.6,2425.7,0.8263]
[1730743124950,4.12191,2426.1,2425.8,0.33535807]
[1730743125154,4.12191,2426.1,2425.7,4.94875]
[1730743125155,4.10201,2426.1,2425.9,0.12898387]
[1730743125460,3.60881,2426.1,2425.7,4.94875]
[1730743125659,3.60881,2426.1,2425.8,0.12899956]
[1730743125862,3.60881,2426.1,2425.9,0.12899956]
[1730743126153,4.1217,2426.2,2426.0,0.12899811]
[1730743126381,4.1217,2426.2,2425.8,4.12234]
[1730743126710,3.74918,2426.3,2425.9,4.25112616]
[1730743126906,3.74918,2426.3,2426.0,0.12899616]
[1730743127199,3.74918,2426.3,2426.1,0.12899616]
[1730743127401,3.74918,2426.3,2425.9,4.12213]
[1730743127574,3.74918,2426.3,2426.0,0.12899156]
[1730743127784,7.83868,2426.3,2426.1,0.12899156]
[1730743128101,4.12174,2426.2,2425.7,0.8263]
[1730743128307,4.12174,2426.2,2425.8,0.33539514]
[1730743128517,4.12174,2426.2,2425.9,0.12899813]
[1730743128806,4.12184,2426.1,2426.0,0.12899813]
[1730743129006,4.12174,2426.2,2426.0,0.12899813]
[1730743129203,4.12174,2426.2,2425.8,4.32865351]
[1730743129204,4.09544,2426.2,2425.8,4.12226]
[1730743129404,4.09544,2426.2,2425.9,0.12899807]
[1730743129571,4.09544,2426.2,2425.8,4.12226]
[1730743129770,4.09544,2426.2,2425.9,0.12899825]
[1730743129771,4.12185,2426.1,2425.9,0.12899825]
[1730743130001,4.09544,2426.2,2425.8,0.20639695]
[1730743130213,4.09544,2426.2,2425.9,0.12899895]
[1730743130214,4.07394,2426.2,2425.9,0.12899895]
[1730743130372,4.07394,2426.2,2426.0,0.12899895]
[1730743130570,4.07394,2426.2,2425.8,4.12224]
[1730743130771,4.07394,2426.2,2425.9,0.12899552]
[1730743130971,4.07394,2426.2,2426.0,0.12899486]
[1730743131202,4.07394,2426.2,2425.8,4.12224]
[1730743131405,4.07394,2426.2,2425.9,0.12899558]
[1730743131611,4.07394,2426.2,2426.0,0.12899558]
[1730743131767,8.19574,2426.2,2425.8,0.20639551]
[1730743131972,4.07394,2426.2,2425.9,0.12899495]
[1730743132172,4.07394,2426.2,2426.0,0.12899495]
[1730743132371,4.07394,2426.2,2425.7,9.07117]
[1730743132595,4.07394,2426.2,2425.8,0.3353888]
[1730743132809,4.07394,2426.2,2425.9,0.12899569]
[1730743133012,4.07394,2426.2,2425.8,4.12234]
[1730743133216,4.07394,2426.2,2425.9,0.12899513]
[1730743133508,4.07394,2426.2,2426.0,0.12899513]
[1730743133712,4.07394,2426.2,2425.8,4.12234]
[1730743133917,4.07394,2426.2,2425.9,0.12899628]
[1730743134271,4.07394,2426.2,2426.0,0.12899626]
[1730743134465,4.07394,2426.2,2425.8,4.12234]
[1730743134758,4.07394,2426.2,2425.9,0.12899543]
[1730743134956,4.07394,2426.2,2426.0,0.12899543]
[1730743135124,4.07394,2426.2,2425.8,4.12234]
[1730743135320,4.07394,2426.2,2425.9,0.12899628]
[1730743135554,4.07394,2426.2,2426.0,0.12899628]
[1730743135858,4.07394,2426.2,2425.8,5.029441]
[1730743136061,4.07394,2426.2,2425.9,0.12899605]
[1730743136274,4.12107,2426.6,2426.1,4.12171]
[1730743136452,7.12088,2426.7,2426.2,4.7543031]
[1730743136626,4.1213,2426.5,2426.1,4.1217]
[1730743136820,4.1213,2426.5,2426.2,0.12898006]
[1730743137053,4.12145,2426.4,2426.0,0.7861]
[1730743137365,4.12167,2426.2,2425.7,4.12245]
[1730743137569,4.12185,2426.1,2425.7,4.12245]
[1730743137863,4.12185,2426.1,2425.8,0.12899517]
[1730743138074,4.12185,2426.1,2425.7,4.12245]
[1730743138075,4.12185,2426.1,2425.9,0.12900113]
[1730743138222,4.12185,2426.1,2425.7,4.12245]
[1730743138425,4.12185,2426.1,2425.8,0.12900013]
[1730743138621,4.12185,2426.1,2425.9,0.12900013]
[1730743138864,4.12185,2426.1,2425.7,4.12245]
[1730743139031,4.12185,2426.1,2425.8,0.12900057]
[1730743139242,4.12185,2426.1,2425.9,0.12900057]
[1730743139559,4.12201,2426.0,2425.6,4.9087]
[1730743139869,4.12201,2426.0,2425.7,0.33540549]
[1730743140040,4.12201,2426.0,2425.8,0.12900211]
[1730743140242,4.12201,2426.0,2425.9,0.12900211]
[1730743141062,4.12201,2426.0,2425.9,0.12900469]
[1730743142129,4.12201,2426.0,2425.6,4.9087]
[1730743142329,4.12201,2426.0,2425.7,0.33541087]
[1730743142625,4.12201,2426.0,2425.8,0.12900425]
[1730743142839,4.12187,2426.1,2425.7,4.32885867]
[1730743143047,4.12187,2426.1,2425.8,0.12900433]
[1730743143250,4.12171,2426.2,2425.9,0.12900433]
[1730743143427,4.12171,2426.2,2425.8,4.12228]
[1730743143651,4.12144,2426.4,2425.8,5.1156807]
[1730743143879,10.70302458,2426.7,2426.1,4.12167]
[1730743143880,4.1211,2426.6,2426.1,4.12167]
[1730743144027,3.02772411,2426.9,2426.2,4.12159]
[1730743144028,4.12048,2426.9,2426.2,4.12159]
[1730743144231,4.1209,2426.7,2426.2,4.12159]
[1730743144432,4.12109,2426.6,2426.1,4.12183]
[1730743144953,4.12125,2426.5,2426.1,4.12183]
[1730743145342,4.12125,2426.5,2426.1,8.24358]
[1730743146081,4.12125,2426.5,2426.2,0.12898369]
[1730743146378,4.12125,2426.5,2426.1,8.24348]
[1730743146546,8.2422,2426.6,2426.2,4.12167]
[1730743148265,4.12109,2426.6,2426.2,4.12167]
[1730743148469,8.24217,2426.6,2426.2,4.12167]
[1730743148947,3.58220458,2426.7,2426.3,4.12148]
[1730743148948,4.12091,2426.7,2426.3,4.12148]
[1730743149139,4.12091,2426.7,2426.4,0.8111]
[1730743149476,8.24187,2426.7,2426.4,0.8111]
[1730743149681,4.12116,2426.5,2426.4,0.8111]
[1730743149885,4.12116,2426.5,2426.2,0.7529]
[1730743151937,4.1211,2426.6,2426.2,4.87455]
[1730743152438,4.1211,2426.6,2426.2,8.99607]
[1730743152666,4.1211,2426.6,2426.2,4.87442]
[1730743153798,8.24224,2426.6,2426.2,5.774049]
[1730743153978,4.1211,2426.6,2426.2,5.774049]
[1730743154894,4.1211,2426.6,2426.2,1.652529]
[1730743155068,4.1211,2426.6,2426.2,0.7529]
[1730743155981,4.12123,2426.5,2426.2,0.7529]
[1730743161668,4.12123,2426.5,2426.2,4.87457]
[1730743163968,4.12123,2426.5,2426.2,0.7529]
[1730743165459,8.24254,2426.5,2426.2,0.7529]
[1730743165657,4.12123,2426.5,2426.1,4.12177]
[1730743165885,4.12123,2426.5,2426.2,0.12898098]
[1730743166084,1.5434108,2426.4,2426.0,0.8143]
[1730743166400,1.5434108,2426.4,2426.1,0.12898949]
[1730743166401,5.6648208,2426.4,2426.1,0.12898949]
[1730743166700,5.6648208,2426.4,2426.0,4.93624]
[1730743166899,8.24283,2426.4,2426.1,0.12898694]
[1730743167097,4.12141,2426.4,2426.0,4.93624]
[1730743167301,8.24284,2426.4,2426.1,0.12898783]
[1730743167507,4.12141,2426.4,2426.0,0.8143]
[1730743167678,8.24289,2426.4,2426.1,0.12898703]
[1730743167870,8.24289,2426.4,2426.0,4.93629]
[1730743168078,8.24289,2426.4,2426.1,0.12898603]
[1730743168278,8.24289,2426.4,2426.0,4.93629]
[1730743168474,8.24289,2426.4,2426.1,0.12898544]
[1730743168675,4.1215,2426.3,2426.0,0.8143]
[1730743168881,4.1215,2426.3,2426.1,0.12899136]
[1730743169113,4.1215,2426.3,2426.0,0.8143]
[1730743169318,4.1215,2426.3,2426.1,0.12898977]
[1730743169524,4.1215,2426.3,2426.0,0.8143]
[1730743169693,4.1215,2426.3,2426.1,0.1289893]
[1730743169876,4.1215,2426.3,2426.0,0.8143]
[1730743170077,4.1215,2426.3,2426.1,0.12899011]
[1730743170314,4.1215,2426.3,2426.0,0.8143]
[1730743170611,4.1215,2426.3,2426.1,0.12898985]
[1730743170913,4.12124,2426.5,2426.1,4.12183]
[1730743171112,8.24251,2426.5,2426.1,4.12183]
[1730743171476,8.24251,2426.5,2426.2,0.12898714]
[1730743171820,8.24251,2426.5,2426.1,4.12183]
[1730743172178,4.12134,2426.4,2426.1,4.12183]
[1730743172380,4.12134,2426.4,2426.2,0.1289873]
[1730743172691,4.12134,2426.4,2426.1,4.12183]
[1730743172907,4.12134,2426.4,2426.2,0.12898812]
[1730743173222,4.12134,2426.4,2426.1,4.12183]
[1730743173418,4.12134,2426.4,2426.2,0.12898795]
[1730743173714,4.12134,2426.4,2426.1,4.12183]
[1730743173880,4.12134,2426.4,2426.2,0.12898599]
[1730743174079,4.12134,2426.4,2426.0,4.93626]
[1730743174394,4.12134,2426.4,2426.1,0.12898701]
[1730743174700,4.12134,2426.4,2426.2,0.12898701]
[1730743174905,4.12134,2426.4,2426.0,4.93626]
[1730743175100,4.12134,2426.4,2426.1,0.12898748]
[1730743175309,4.12134,2426.4,2426.2,0.12898748]
[1730743175527,4.12134,2426.4,2426.0,4.93626]
[1730743175807,4.12134,2426.4,2426.1,0.12898911]
[1730743176002,4.12134,2426.4,2426.2,0.12898911]
[1730743176214,4.12134,2426.4,2426.0,4.93626]
[1730743176583,4.12134,2426.4,2426.1,0.1289905]
[1730743176926,4.12124,2426.5,2426.2,0.12898893]
[1730743177220,4.12124,2426.5,2426.1,4.12178]
[1730743177423,4.12124,2426.5,2426.2,0.12898579]
[1730743177580,4.12133,2426.4,2426.0,9.05815]
[1730743177786,4.12124,2426.5,2426.1,4.25081412]
[1730743177994,4.12124,2426.5,2426.2,0.12898412]
[1730743178184,4.12106,2426.6,2426.1,4.12168]
[1730743178389,4.12106,2426.6,2426.2,5.00336243]
[1730743178589,4.12106,2426.6,2426.3,0.12898243]
[1730743178827,4.12106,2426.6,2426.2,4.87438]
[1730743179025,4.12076,2426.8,2426.3,1.02858319]
[1730743179270,4.12083,2426.7,2426.4,0.12897719]
[1730743179390,4.12083,2426.7,2426.3,8.2429]
[1730743179590,4.12083,2426.7,2426.4,0.95497492]
[1730743179899,4.12076,2426.8,2426.4,4.9473]
[1730743181031,8.24157,2426.8,2426.4,4.9473]
[1730743181814,8.24157,2426.8,2426.4,0.826]
[1730743181815,4.12084,2426.7,2426.4,0.826]
[1730743182906,4.12068,2426.8,2426.4,4.9473]
[1730743183316,4.12084,2426.7,2426.4,0.826]
[1730743184323,4.12084,2426.7,2426.4,1.320746]
[1730743186653,4.12084,2426.7,2426.4,0.826]
[1730743186860,4.12099,2426.6,2426.4,0.826]
[1730743188050,4.12084,2426.7,2426.4,0.826]
[1730743188414,4.12069,2426.8,2426.4,4.9473]
[1730743188642,4.1209,2426.7,2426.4,0.826]
[1730743189226,4.12067,2426.8,2426.4,0.826]
[1730743189439,4.1209,2426.7,2426.4,0.826]
[1730743189644,4.12067,2426.8,2426.4,0.826]
[1730743189962,4.12067,2426.8,2426.4,4.94731]
[1730743190452,4.12067,2426.8,2426.4,0.826]
[1730743190453,4.12093,2426.7,2426.4,0.826]